lending/lending_fUSD_20240504
["ID","MTS","AMOUNT","RATE_DAILY","PERIOD"]
[325382410,1714801838621,-1001.5125,0.00012999,2]
[325382411,1714801838630,-463728.58727162,0.00013,2]
[325382412,1714801838643,-1859.13214073,0.00013,2]
[325382413,1714801838670,-474.82072206,0.00013,2]
[325382414,1714801838687,-912078.08131287,0.00013,2]
[325382415,1714801838696,-30480.46007202,0.00013,2]
[325382416,1714801838706,-1000.0,0.00013,2]
[325382417,1714801838715,-1000.0,0.00013,2]
[325382418,1714801838725,-1000.0,0.00013,2]
[325382419,1714801838734,-1000.0,0.00013,2]
[325382420,1714801838743,-1000.0,0.00013,2]
[325382421,1714801838752,-1000.0,0.00013,2]
[325382422,1714801838762,-1000.0,0.00013,2]
[325382423,1714801838771,-1000.0,0.00013,2]
[325382424,1714801838780,-1000.0,0.00013,2]
[325382425,1714801838790,-1000.0,0.00013,2]
[325382426,1714801838800,-1000.0,0.00013,2]
[325382427,1714801838809,-1000.0,0.00013,2]
[325382428,1714801838819,-1000.0,0.00013,2]
[325382429,1714801838828,-1000.0,0.00013,2]
[325382430,1714801838838,-1000.0,0.00013,2]
[325382431,1714801838848,-1000.0,0.00013,2]
[325382432,1714801838857,-1000.0,0.00013,2]
[325382433,1714801838870,-1000.0,0.00013,2]
[325382434,1714801838879,-1000.0,0.00013,2]
[325382435,1714801838888,-1000.0,0.00013,2]
[325382436,1714801838899,-1000.0,0.00013,2]
[325382437,1714801838909,-1000.0,0.00013,2]
[325382438,1714801838919,-1000.0,0.00013,2]
[325382439,1714801838928,-1000.0,0.00013,2]
[325382440,1714801838940,-1000.0,0.00013,2]
[325382441,1714801838949,-1000.0,0.00013,2]
[325382442,1714801838959,-1000.0,0.00013,2]
[325382443,1714801838968,-1000.0,0.00013,2]
[325382444,1714801838977,-1000.0,0.00013,2]
[325382445,1714801838987,-1000.0,0.00013,2]
[325382446,1714801838997,-1000.0,0.00013,2]
[325382447,1714801839007,-186.24280344,0.00013,2]
[325382448,1714801839016,-2000.0,0.00013,2]
[325382449,1714801839026,-200.0,0.00013,2]
[325382450,1714801839036,-2344.49834,0.00013,2]
[325382451,1714801839045,-225.0,0.00013,2]
[325382452,1714801839055,-159.26,0.00013044,2]
[325382453,1714801839064,-159.26,0.000131,2]
[325382454,1714801839074,-159.26,0.00013155,2]
[325382455,1714801839083,-1820.647982,0.00013235,2]
[325382456,1714801839094,-1559.4356232,0.00013254,2]
[325382457,1714801839104,-311.37,0.00013414,2]
[325382458,1714801839114,-174.62,0.00013425,2]
[325382459,1714801839125,-166.23,0.00013425,2]
[325382460,1714801839136,-321.79,0.00013429,2]
[325382461,1714801839147,-800.0,0.00013589,2]
[325382462,1714801839158,-155.13321013,0.000136,2]
[325382463,1714801839169,-655.99,0.0001363,2]
[325382464,1714801839180,-200.0,0.00013699,2]
[325382465,1714801839190,-200.0,0.00013699,2]
[325382466,1714801839199,-160.09,0.00013699,2]
[325382467,1714801839208,-500.0,0.00013699,2]
[325382468,1714801839218,-340.26,0.00013844,2]
[325382469,1714801839227,-169.12,0.00013855,2]
[325382470,1714801839236,-152.85,0.00014,2]
[325382471,1714801839245,-150.0,0.00014356,2]
[325382472,1714801839255,-150.0,0.00014356,2]
[325382473,1714801839264,-311.37,0.00014904,2]
[325382474,1714801839273,-321.79,0.00014921,2]
[325382475,1714801839283,-828.56,0.00014932,2]
[325382476,1714801839292,-911.73,0.00014932,2]
[325382477,1714801839301,-911.73,0.00014932,2]
[325382478,1714801839310,-1000.0,0.0001497,2]
[325382479,1714801839320,-619.06155643,0.00015,2]
[325382480,1714801839329,-484.0,0.00015,2]
[325382481,1714801839338,-3039.0,0.00015,2]
[325382482,1714801839348,-1044.92255095,0.00015,2]
[325382483,1714801839357,-17229.27420184,0.00015,2]
[325382484,1714801839367,-610.0,0.00015,2]
[325382485,1714801839376,-655.99,0.00015145,2]
[325382486,1714801839386,-340.26,0.00015382,2]
[325382487,1714801839396,-11578.48320589,0.00015454,2]
[325382488,1714801839405,-1413.335,0.00015499,2]
[325382489,1714801839415,-2329.598,0.00015499,2]
[325382490,1714801839426,-485.974,0.00015499,2]
[325382491,1714801839435,-1017.42,0.00015499,2]
[325382492,1714801839446,-1270.26,0.00015499,2]
[325382493,1714801839456,-1221.902,0.00015499,2]
[325382494,1714801839465,-550.014,0.00015499,2]
[325382495,1714801839475,-1786.0,0.00015499,2]
[325382496,1714801839485,-619.327,0.00015499,2]
[325382497,1714801839495,-474.344,0.00015499,2]
[325382498,1714801839504,-808.0,0.00015499,2]
[325382499,1714801839516,-311.689,0.00015499,2]
[325382500,1714801839525,-2479.961,0.00015499,2]
[325382501,1714801839534,-214.635,0.00015499,2]
[325382502,1714801839543,-1567.228,0.00015499,2]
[325382503,1714801839553,-425.705,0.00015499,2]
[325382504,1714801839562,-154.806,0.00015499,2]
[325382505,1714801839573,-1664.127,0.00015499,2]
[325382506,1714801839583,-1155.342,0.00015499,2]
[325382507,1714801839594,-219.0,0.00015499,2]
[325382508,1714801839605,-448.756,0.00015499,2]
[325382509,1714801839614,-3151.0,0.00015499,2]
[325382510,1714801839625,-5826.917,0.00015499,2]
[325382511,1714801839635,-5991.493,0.00015499,2]
[325382512,1714801839645,-2293.0,0.00015499,2]
[325382513,1714801839654,-37766.0,0.00015499,2]
[325382514,1714801839663,-1066.654,0.00015499,2]
[325382515,1714801839673,-1045.04,0.00015616,2]
[325382516,1714801839683,-150.0,0.00015616,2]
[325382517,1714801839692,-350.77,0.00015616,2]
[325382518,1714801839701,-150.0,0.00015616,2]
[325382519,1714801839711,-150.0,0.00015616,2]
[325382520,1714801839721,-150.0,0.00015616,2]
[325382521,1714801839730,-167.39,0.00015831,2]
[325382522,1714801839739,-205.51160577,0.000159,2]
[325382523,1714801839749,-311.37,0.00016395,2]
[325382524,1714801839758,-321.79,0.00016413,2]
[325382525,1714801839768,-655.99,0.00016659,2]
[325382526,1714801839777,-167.39,0.00016702,2]
[325382528,1714801839787,-182.63,0.00016712,2]
[325382529,1714801839796,-214.0,0.00016779,2]
[325382530,1714801839806,-340.26,0.0001692,2]
[325382531,1714801839815,-167.39,0.00017573,2]
[325382532,1714801839824,-419.66,0.00017856,2]
[325382533,1714801839833,-522.7,0.00017856,2]
[325382535,1714801839843,-150.0,0.00017856,2]
[325382537,1714801839852,-165.70892296,0.0001788,2]
[325382539,1714801839864,-165.70892292,0.0001788,2]
[325382540,1714801839874,-165.70892292,0.0001788,2]
[325382541,1714801839884,-311.37,0.00017885,2]
[325382542,1714801839894,-321.79,0.00017906,2]
[325382543,1714801839905,-450.0,0.00018,3]
[325382544,1714801839915,-2344.49835,0.00018,2]
[325382545,1714801839924,-11578.48320589,0.00018008,2]
[325382546,1714801839934,-172.45,0.00018097,2]
[325382547,1714801839944,-655.99,0.00018174,2]
[325382548,1714801839954,-167.39,0.00018444,2]
[325382549,1714801839964,-340.26,0.00018458,2]
[325382550,1714801839974,-1396.0,0.00018499,2]
[325382551,1714801839984,-2300.0,0.00018499,2]
[325382552,1714801839993,-462.0,0.00018499,2]
[325382553,1714801840003,-971.0,0.00018499,2]
[325382554,1714801840012,-1258.0,0.00018499,2]
[325382555,1714801840022,-542.0,0.00018499,2]
[325382556,1714801840032,-1786.0,0.00018499,2]
[325382557,1714801840042,-611.0,0.00018499,2]
[325382558,1714801840051,-438.0,0.00018499,2]
[325382559,1714801840061,-808.0,0.00018499,2]
[325382560,1714801840070,-209.0,0.00018499,2]
[325382561,1714801840080,-2450.0,0.00018499,2]
[325382562,1714801840089,-150.0,0.00018499,2]
[325382563,1714801840099,-1477.0,0.00018499,2]
[325382564,1714801840109,-421.0,0.00018499,2]
[325382565,1714801840118,-1643.0,0.00018499,2]
[325382566,1714801840127,-1139.0,0.00018499,2]
[325382567,1714801840217,-215.0,0.00018499,2]
[325382568,1714801840228,-444.0,0.00018499,2]
[325382569,1714801840237,-3141.634,0.00018499,2]
[325382570,1714801840246,-5740.0,0.00018499,2]
[325382571,1714801840255,-454.067,0.00018499,2]
[325382572,1714801840267,-22829.638,0.00018499,2]
[325382573,1714801840279,-1057.0,0.00018499,2]
[325382574,1714801840288,-165.70892292,0.00018893,2]
[325382575,1714801840297,-166.36124735,0.000189,2]
[325382576,1714801840307,-500.0,0.00019178,2]
[325382577,1714801840317,-223.62795639,0.00019178,2]
[325382578,1714801840327,-156.72,0.000195,2]
[325382579,1714801840336,-168.88,0.000195,2]
[325382580,1714801840347,-1000.0,0.0001997,2]
[325382581,1714801840356,-5175.72990395,0.0002,2]
[325382582,1714801840368,-184.05186467,0.0002,2]
[325382583,1714801840377,-1159.41602652,0.0002,2]
[325382584,1714801840387,-155.3142834,0.0002,2]
[325382585,1714801840396,-6227.01127323,0.0002,2]
[325382586,1714801840405,-342.0,0.0002,2]
[325382587,1714801840414,-500.0,0.0002,3]
[325382588,1714801840423,-177.49,0.00020274,2]
[325382589,1714801840433,-150.0,0.00020274,2]
[325382590,1714801840442,-150.0,0.00020274,2]
[325382591,1714801840451,-150.0,0.00020274,2]
[325382593,1714801840460,-11578.48320589,0.00020562,2]
[325382594,1714801840469,-155.0,0.000209,2]
[325382595,1714801840479,-718.82272761,0.00021,2]
[325382596,1714801840488,-175.641,0.00021499,2]
[325382597,1714801840498,-449.981,0.00021499,2]
[325382598,1714801840507,-175.87,0.00021644,2]
[325382599,1714801840516,-177.71,0.00021644,2]
[325382600,1714801840526,-215.75,0.00021644,2]
[325382601,1714801840535,-1721.46923575,0.000219,2]
[325382602,1714801840544,-250.0,0.00021918,2]
[325382603,1714801840553,-550.0,0.00022,3]
[325382604,1714801840562,-152.0,0.00022065,2]
[325382605,1714801840571,-2344.49835,0.00023,2]
[325382606,1714801840580,-11578.48320589,0.00023116,2]
[325382607,1714801840590,-1845.42494535,0.000234,2]
[325382608,1714801840599,-157.0,0.00023962,2]
[325382609,1714801840608,-1000.0,0.00024,4]
[325382610,1714801840617,-159.06,0.00024329,15]
[325382611,1714801840626,-201.050411,0.00024348,6]
[325382612,1714801840636,-1025.66149993,0.00024606,2]
[325382613,1714801840646,-1007.9796618,0.00024606,2]
[325382614,1714801840655,-166.23,0.00024658,2]
[325382615,1714801840665,-4321.4629317,0.000248,2]
[325382616,1714801840675,-166.36124735,0.000249,2]
[325382617,1714801840684,-206.73823642,0.000249,2]
[325382618,1714801840693,-270.88028296,0.000249,2]
[325382619,1714801840702,-171.59347666,0.000249,2]
[325382620,1714801840712,-10539.43288264,0.000249,2]
[325382621,1714801840721,-2588.18039033,0.000249,9]
[325382622,1714801841301,-495.22790793,0.000249,9]
[325382623,1714801841310,-1563.1777177,0.00024983,2]
[325382624,1714801841319,-1554.2509414,0.00024983,2]
[325382625,1714801841328,-1545.3241651,0.00024983,2]
[325382626,1714801841337,-3498.1825695,0.00024983,2]
[325382627,1714801841346,-3498.1825695,0.00024983,2]
[325382628,1714801841355,-3498.1825695,0.00024983,2]
[325382629,1714801841364,-5824.1839384,0.00024983,2]
[325382630,1714801841373,-5607.3084762,0.00024983,2]
[325382631,1714801841382,-5390.433014,0.00024983,2]
[325382632,1714801841392,-19457.8427965,0.00024983,2]
[325382633,1714801841401,-18733.2900189,0.00024983,2]
[325382634,1714801841410,-9957.63489765,0.00024983,2]
[325382635,1714801841422,-8051.10234365,0.00024983,2]
[325382636,1714801841431,-152.85,0.0002499,2]
[325382637,1714801841441,-152.85,0.0002499,2]
[325382638,1714801841449,-152.85,0.0002499,2]
[325382639,1714801841459,-155.0,0.00025,2]
[325382640,1714801841468,-2406.33895432,0.00025,2]
[325382641,1714801841477,-456.66329758,0.00025,7]
[325382642,1714801841486,-5000.0,0.00025,2]
[325382643,1714801841494,-21572.34540445,0.00025,2]
[325382644,1714801841505,-1015.14986508,0.00025,2]
[325382645,1714801842077,-159.26,0.0001321,2]
[325382646,1714801842088,-159.26,0.00013266,2]
[325382647,1714801842097,-159.26,0.00013321,2]
[325382648,1714801842107,-159.26,0.00013377,2]
[325382649,1714801842116,-159.26,0.00013432,2]
[325382650,1714801842126,-205.51160577,0.000189,2]
[325382651,1714801842136,-2784.77140482,0.00025,2]
[325382652,1714801842149,-19984.96028322,0.00025,2]
[325382653,1714801842169,-1473.14388066,0.00025,2]
[325382654,1714801842182,-425.6559996,0.00025,2]
[325382655,1714801842205,-4604.66221011,0.00025,2]
[325382656,1714801842303,-316.69,0.00025,2]
[325382686,1714801843536,-150.0,0.00014888,2]
[325382687,1714801843546,-165.70892292,0.00020891,2]
[325382688,1714801843555,-205.51160577,0.000219,2]
[325382689,1714801843565,-205.51160577,0.000249,2]
[325382690,1714801843574,-502.6647628,0.00025,3]
[325382691,1714801843585,-19637.40854119,0.00025,2]
[325382692,1714801843608,-2645.86527156,0.00025,2]
[325382697,1714801846175,-1447.90200368,0.00025,2]
[325382700,1714801936045,400.0,0.00024899,120]
[325382703,1714802367089,349.0,0.00012,2]
[325382704,1714802385087,264.70781484,0.0001194,2]
[325382705,1714802387889,867.23323882,0.00012,2]
[325382706,1714802392125,733.79138813,0.00012,2]
[325382797,1714803032842,-1633.10754973,0.00011981,2]
[325382800,1714803032855,-549.06568306,0.00011981,2]
[325382802,1714803032865,-1396.55339933,0.00011982,2]
[325382804,1714803032875,-1000.0,0.00011983,2]
[325382806,1714803032884,-2362.7460862,0.00011984,2]
[325382808,1714803032894,-1065.88897309,0.00011997,2]
[325382810,1714803032906,-591.826501,0.00011997,2]
[325382813,1714803032923,-128.48596761,0.00011997,2]
[325382814,1714803032933,-293.46347836,0.00012,2]
[325382828,1714803033048,-445.88441904,0.00012,2]
[325382830,1714803033057,-17.16558096,0.00012,2]
[325382832,1714803033068,-137.83441904,0.00012,2]
[325382835,1714803033084,-5474.34629149,0.00012,2]
[325382837,1714803033096,-819.28,0.00012,2]
[325382839,1714803033108,-1213.28387618,0.00012,2]
[325382841,1714803033120,-411.45452887,0.00012,2]
[325382844,1714803033130,-180.2310364,0.00012,2]
[325382846,1714803033139,-4656.05663469,0.00012,2]
[325382848,1714803033151,-7065.00647956,0.00012,2]
[325382850,1714803033164,-1007.15591784,0.00012,2]
[325382853,1714803033177,-4431.34297496,0.00012,2]
[325382855,1714803033189,-703.37788318,0.00012,2]
[325382860,1714803033229,-532.23600459,0.00012,2]
[325382861,1714803033245,-275.67664317,0.00012,2]
[325382916,1714803038212,-155.0,0.0001198,2]
[325382917,1714803038222,-4420.42603298,0.00012,2]
[325382918,1714803038234,-692.79472096,0.00012,2]
[325382919,1714803038283,-48256.19354367,0.00012,2]
[325382920,1714803038293,-314.97752474,0.00012899,2]
[325382921,1714803038303,-11694.7034435,0.000129,2]
[325382922,1714803038313,-35953.3868,0.000129,2]
[325382923,1714803038323,-166.36124735,0.000129,2]
[325382924,1714803038332,-6070.141,0.000129,2]
[325382925,1714803038341,-163.304897,0.000129,2]
[325382926,1714803038350,-4027.0617,0.000129,2]
[325382927,1714803038359,-270.88028296,0.000129,2]
[325382928,1714803038369,-904.47978434,0.000129,2]
[325382929,1714803038380,-689.80733082,0.000129,2]
[325382930,1714803038390,-171.59347666,0.000129,2]
[325382931,1714803038399,-3038.17806797,0.00012986,2]
[325382932,1714803038409,-171.37,0.00012988,2]
[325382933,1714803038418,-171.37,0.0001299,2]
[325382934,1714803038427,-171.37,0.0001299,2]
[325382935,1714803038437,-171.37,0.0001299,2]
[325382936,1714803038446,-171.37,0.0001299,2]
[325382937,1714803038456,-171.37,0.0001299,2]
[325382938,1714803038466,-155.0,0.00012998,2]
[325382939,1714803038476,-194.85810438,0.00012998,2]
[325382940,1714803038486,-155.349177,0.00012998,2]
[325382942,1714803038495,-368.89683598,0.00012998,2]
[325382944,1714803038504,-220.0701607,0.00012998,2]
[325382945,1714803038514,-191.36569729,0.00012998,2]
[325382946,1714803038524,-288696.20623415,0.00012998,2]
[325382947,1714803038533,-526.19291629,0.00012998,2]
[325382948,1714803038542,-546.17516146,0.00012999,2]
[325382949,1714803038551,-4262529.89148451,0.00013,2]
[325382950,1714803038564,-80623.22158228,0.00013,2]
[325382951,1714803038575,-428.61941707,0.00013,2]
[325382952,1714803038588,-315.19030927,0.00013,2]
[325382953,1714803038600,-1575.28298043,0.00013,2]
[325382954,1714803038628,-1220.20775906,0.00013,2]
[325382955,1714803038640,-406.46916604,0.00013,2]
[325382956,1714803038651,-1425.94447234,0.00013,2]
[325382957,1714803038663,-63484.88164485,0.00013,2]
[325382958,1714803038708,-268.35717132,0.00013,2]
[325382959,1714803042048,-320.621534,0.00013,2]
[325382960,1714803042232,-1288.08427097,0.00013,2]
[325382961,1714803042248,-451.9375,0.00013,2]
[325382962,1714803042311,-402.23488795,0.00013,2]
[325382963,1714803042406,-227671.35153625,0.00013,2]
[325382964,1714803042564,-348.64959659,0.00013,2]
[325382965,1714803042575,-1443.16566542,0.00013,2]
[325382974,1714803043604,-1067.81353758,0.000129,2]
[325382975,1714803043619,-455.24917089,0.000129,2]
[325382976,1714803043801,-1126.43968259,0.000129,2]
[325382977,1714803043816,-881.15110101,0.000129,2]
[325382978,1714803046317,-959.66047797,0.000129,2]
[325382979,1714803046332,-3009.68602996,0.000129,2]
[325382980,1714803046343,-421.46434643,0.00012999,2]
[325382981,1714803046491,-388.66240866,0.00012999,2]
[325382982,1714803046502,-339.28759134,0.00012999,2]
[325382983,1714803046517,-468.0162108,0.00012999,2]
[325382984,1714803046528,-68.3017698,0.00013,2]
[325382986,1714803046541,-360.08234564,0.00013,2]
[325382988,1714803046555,-1795.36741921,0.00013,2]
[325382997,1714803046652,-2337.52169752,0.00013,2]
[325383003,1714803593610,1007.28639079,0.0001169,2]
[325383004,1714803685159,-370.4478157,0.00011683,2]
[325383005,1714803685188,-155.0,0.00011684,2]
[325383006,1714803685215,-156.0,0.00011685,2]
[325383007,1714803685242,-236.8114536,0.00011685,2]
[325383008,1714803685268,-1000.0,0.00011686,2]
[325383009,1714803685295,-5212.03076753,0.00011687,2]
[325383010,1714803685320,-536.56930293,0.00011688,2]
[325383011,1714803685346,-13273.92120921,0.0001169,2]
[325383012,1714803685374,-891.5869,0.00011798,2]
[325383013,1714803685401,-42799.56071511,0.00011899,2]
[325383014,1714803685428,-179.98506405,0.00012,2]
[325383015,1714803685470,-188.08677187,0.00012,2]
[325383034,1714804232491,-438.97877864,0.00011985,2]
[325383035,1714804232502,-861.51877093,0.00011985,2]
[325383036,1714804232514,-575.83,0.00011985,2]
[325383037,1714804232678,-1207.64325977,0.00011985,2]
[325383038,1714804232689,-301.44505381,0.00011985,2]
[325383039,1714804232700,-538.72781616,0.00011985,2]
[325383040,1714804232712,-1287.88708822,0.00011985,2]
[325383041,1714804232721,-1000.0,0.00011986,2]
[325383042,1714804232730,-1017.98363944,0.00012,2]
[325383043,1714804232740,-155.97022055,0.00012,2]
[325383044,1714804233032,-11321.86,0.00012427,2]
[325383045,1714804233046,-1560.64174384,0.00012603,2]
[325383046,1714804233056,-159.26,0.00012753,2]
[325383047,1714804233066,-181.63829139,0.000128,2]
[325383048,1714804233076,-150.0,0.00012804,2]
[325383049,1714804233085,-3498.38014246,0.00012806,2]
[325383050,1714804233095,-3176.26602683,0.00012816,2]
[325383051,1714804233107,-2401.13681457,0.00012816,2]
[325383059,1714804238884,-229.9671586,0.00012816,2]
[325383060,1714804238893,-250.0,0.00012852,2]
[325383061,1714804238902,-11430.64236281,0.0001287,2]
[325383062,1714804238913,-710.733,0.0001287,2]
[325383063,1714804238925,-965.88462889,0.0001287,2]
[325383064,1714804238935,-237.06201959,0.00012898,2]
[325383065,1714804238944,-370.1125422,0.00012898,2]
[325383066,1714804238953,-223.7471019,0.00012899,2]
[325383067,1714804238962,-610.4073,0.000129,2]
[325383068,1714804238971,-624.9357,0.000129,2]
[325383069,1714804238980,-56963.8921,0.000129,2]
[325383070,1714804238989,-20627.1801897,0.000129,2]
[325383071,1714804239162,-3235.90921283,0.000129,2]
[325383072,1714804239172,-597.91347489,0.000129,2]
[325383073,1714804239185,-1113.16775,0.000129,2]
[325383074,1714804239197,-476.83443986,0.000129,2]
[325383075,1714804239213,-597.1144442,0.000129,2]
[325383076,1714804239224,-15608.99885899,0.000129,2]
[325383077,1714804239236,-5350.58203206,0.000129,2]
[325383078,1714804239246,-182.61757425,0.000129,2]
[325383079,1714804239255,-174.54400576,0.000129,2]
[325383080,1714804239264,-311.71332879,0.000129,2]
[325383081,1714804239274,-166.34515989,0.0001299,2]
[325383082,1714804239284,-1082.46483,0.00012998,2]
[325383083,1714804239294,-489.93976838,0.00012998,2]
[325383084,1714804239303,-344.27014613,0.00012998,2]
[325383085,1714804239312,-262.4977061,0.00012998,2]
[325383086,1714804239322,-1259.40402802,0.00012998,2]
[325383087,1714804239331,-997.07454029,0.00012998,2]
[325383088,1714804239341,-3015.69903206,0.00012998,2]
[325383089,1714804239350,-316.44060217,0.00012998,2]
[325383090,1714804239360,-288.56508134,0.00012998,2]
[325383091,1714804239370,-208.85153682,0.00012998,2]
[325383092,1714804239379,-788.6775476,0.00012998,2]
[325383093,1714804239389,-158.26245048,0.00012998,2]
[325383094,1714804239399,-1536.09330529,0.00012998,2]
[325383095,1714804239531,-692.06926178,0.00012998,2]
[325383111,1714804240524,-316.72,0.00012998,2]
[325383114,1714804240777,-1034.268095,0.00012998,2]
[325383115,1714804240855,-711.26273305,0.00012998,2]
[325383116,1714804240867,-1153.5,0.00012998,2]
[325383117,1714804240991,-496.27636977,0.00012998,2]
[325383118,1714804241043,-795.69011583,0.00012998,2]
[325383122,1714804243577,-373.5132,0.00012998,2]
[325383123,1714804243592,-1254.60342369,0.00012998,2]
[325383124,1714804243648,-3057.87385314,0.00012998,2]
[325383125,1714804243663,-336.88825157,0.00012998,2]
[325383126,1714804243673,-155.66172099,0.00012998,2]
[325383127,1714804243684,-10701.31,0.00012998,2]
[325383128,1714804243694,-155.23916388,0.00012999,2]
[325383129,1714804243704,-405.12132937,0.00012999,2]
[325383130,1714804243714,-494087.35633219,0.00013,2]
[325383132,1714804253582,-343625.30397158,0.00013,2]
[325383133,1714804253596,-10098.32432157,0.00013,2]
[325383134,1714804253606,-233078.14985702,0.00013,2]
[325383135,1714804253616,-30480.46007202,0.00013,2]
[325383136,1714804253625,-397.16117121,0.00013,2]
[325383137,1714804253635,-6729.88390198,0.00013,2]
[325383138,1714804253644,-3000.0,0.00013,2]
[325383139,1714804253653,-1013.42,0.00013055,2]
[325383140,1714804253664,-159.26,0.00013085,2]
[325383141,1714804253673,-478.82,0.00013151,2]
[325383142,1714804253682,-200.49,0.00013273,2]
[325383143,1714804253691,-501.02,0.00013416,2]
[325383144,1714804253701,-159.26,0.00013417,2]
[325383145,1714804253710,-373.21,0.00013425,2]
[325383146,1714804253719,-166.23,0.00013527,2]
[325383147,1714804253728,-200.0,0.00013699,2]
[325383148,1714804253738,-500.0,0.00013699,2]
[325383149,1714804253748,-800.0,0.00013945,2]
[325383150,1714804253757,-800.0,0.00013945,2]
[325383151,1714804253767,-800.0,0.00013973,2]
[325383152,1714804253776,-281.91054346,0.00014,2]
[325383153,1714804253786,-153.55,0.00014,2]
[325383154,1714804253795,-178.06,0.00014131,2]
[325383155,1714804253805,-498.98,0.00014364,2]
[325383156,1714804253814,-326.9,0.00014369,2]
[325383157,1714804253823,-250.0,0.00014841,2]
[325383158,1714804253833,-619.06155643,0.00015,2]
[325383159,1714804253842,-167.62462793,0.00015,2]
[325383160,1714804253852,-1749.0834379,0.00015,2]
[325383161,1714804253861,-643.0,0.00015,2]
[325383162,1714804253870,-4144.0,0.00015,2]
[325383163,1714804253879,-501.02,0.00015093,2]
[325383164,1714804253889,-264.14365033,0.00015214,2]
[325383165,1714804253898,-23863.08940245,0.00015454,2]
[325383166,1714804253908,-225.0,0.00015487,2]
[325383167,1714804253917,-165.16,0.00015589,2]
[325383168,1714804253926,-10000.0,0.00015775,2]
[325383169,1714804253936,-498.98,0.00016159,2]
[325383170,1714804253945,-326.9,0.00016165,2]
[325383171,1714804253954,-165.01,0.00016297,2]
[325383172,1714804253964,-5482.16,0.00016438,2]
[325383173,1714804253974,-1228.41370709,0.000165,2]
[325383174,1714804253983,-1229.625,0.00016699,2]
[325383175,1714804253992,-474.344,0.00016699,2]
[325383176,1714804254001,-619.327,0.00016699,2]
[325383177,1714804254012,-808.0,0.00016699,2]
[325383178,1714804254021,-311.689,0.00016699,2]
[325383179,1714804254030,-1786.0,0.00016699,2]
[325383180,1714804254041,-425.705,0.00016699,2]
[325383181,1714804254050,-154.806,0.00016699,2]
[325383182,1714804254059,-214.635,0.00016699,2]
[325383183,1714804254068,-1567.228,0.00016699,2]
[325383184,1714804254077,-2479.961,0.00016699,2]
[325383185,1714804254086,-219.0,0.00016699,2]
[325383186,1714804254095,-448.756,0.00016699,2]
[325383187,1714804254104,-1155.342,0.00016699,2]
[325383188,1714804254113,-1664.127,0.00016699,2]
[325383189,1714804254122,-3151.0,0.00016699,2]
[325383190,1714804254131,-5991.493,0.00016699,2]
[325383191,1714804254140,-5826.917,0.00016699,2]
[325383192,1714804254149,-2293.0,0.00016699,2]
[325383193,1714804254158,-1413.335,0.00016699,2]
[325383194,1714804254167,-2329.598,0.00016699,2]
[325383195,1714804254177,-485.974,0.00016699,2]
[325383196,1714804254187,-1017.42,0.00016699,2]
[325383197,1714804254196,-37766.0,0.00016699,2]
[325383198,1714804254206,-550.014,0.00016699,2]
[325383199,1714804254215,-182.63,0.00016712,2]
[325383200,1714804254225,-501.02,0.0001677,2]
[325383201,1714804254236,-178.06,0.00017129,2]
[325383202,1714804254245,-4018.88765904,0.0001788,2]
[325383203,1714804254255,-4018.887659,0.0001788,2]
[325383204,1714804254264,-4018.887659,0.0001788,2]
[325383205,1714804254273,-165.70892296,0.0001788,2]
[325383206,1714804254283,-165.70892292,0.0001788,2]
[325383207,1714804254292,-165.70892292,0.0001788,2]